bitfinex-derivatives/quotes_ETHF0:USTF0_20251006
["timestamp","ask_amount","ask_price","bid_price","bid_amount"]
[1759744608192,0.7229,4578.6,4578.5,0.00264465]
[1759744608390,1.22098036,4578.6,4578.5,0.00264465]
[1759744609192,1.22098036,4578.6,4578.5,0.39562465]
[1759744610588,1.22098036,4578.6,4578.5,0.00264465]
[1759744615191,0.1259,4578.0,4577.8,0.39303]
[1759744615397,1.43998036,4577.9,4577.8,0.39303]
[1759744615591,1.43998036,4577.9,4577.8,0.61153]
[1759744615795,1.43998036,4577.9,4577.8,0.81713]
[1759744616191,1.43998036,4577.9,4577.8,0.81935717]
[1759744616695,1.43998036,4577.9,4577.8,0.61375717]
[1759744617298,1.23508036,4577.9,4577.8,1.10485717]
[1759744617899,1.01608036,4577.9,4577.8,1.10485717]
[1759744618105,0.5252,4577.9,4577.8,1.10485717]
[1759744619000,0.3062,4577.9,4577.8,1.10485717]
[1759744619203,0.5252,4577.9,4577.8,1.10485717]
[1759744620403,0.219,4577.9,4577.8,1.10485717]
[1759744620598,0.3062,4578.3,4578.2,0.393]
[1759744620800,0.518,4578.7,4578.6,1.10257]
[1759744621001,1.01679254,4578.7,4578.6,1.10257]
[1759744621198,1.44069254,4578.7,4578.6,1.10257]
[1759744621594,1.22169254,4578.7,4578.6,0.81707]
[1759744621894,1.44069254,4578.7,4578.6,0.81707]
[1759744622095,1.44069254,4578.7,4578.6,1.10257]
[1759744622402,1.22169254,4578.7,4578.6,1.10257]
[1759744622597,1.44069254,4578.7,4578.6,1.10257]
[1759744623001,1.22169254,4578.7,4578.6,1.10257]
[1759744623206,1.23579254,4578.7,4578.6,1.10257]
[1759744624303,1.02399254,4578.7,4578.6,41.90257]
[1759744624605,0.3062,4578.7,4578.6,41.90257]
[1759744627304,0.3062,4578.7,4578.6,41.0185]
[1759744627510,0.80511992,4578.7,4578.6,40.8]
[1759744627712,0.3062,4578.7,4578.6,40.8]
[1759744629412,0.3062,4578.7,4578.6,41.0855]
[1759744633100,0.5252,4578.7,4578.6,41.0855]
[1759744636012,0.4167,4578.6,4578.5,0.39297]
[1759744636211,0.7229,4578.4,4578.3,3.2078]
[1759744636404,1.22163801,4578.4,4578.3,3.2078]
[1759744636604,1.22163801,4578.4,4578.3,41.19299]
[1759744637414,1.11589,4578.3,4578.2,0.393]
[1759744637612,1.22163801,4578.3,4578.2,0.393]
[1759744638315,0.7629,4578.1,4578.0,0.39301]
[1759744638608,1.48063801,4578.1,4578.0,0.39301]
[1759744638807,1.48063801,4578.1,4578.0,0.60481]
[1759744639510,0.5704,4578.0,4577.9,0.39302]
[1759744639714,1.38953801,4578.0,4577.9,0.39302]
[1759744639914,0.3204,4577.9,4577.8,40.80222717]
[1759744640213,1.26163801,4577.9,4577.8,0.00222717]
[1759744641214,1.26163801,4577.9,4577.8,0.21402717]
[1759744643115,1.26163801,4577.9,4577.8,0.00222717]
[1759744644116,1.26163801,4577.9,4577.8,0.42812717]
[1759744645015,1.26163801,4577.9,4577.8,0.00222717]
[1759744646715,4.11223089,4577.9,4577.8,0.00222717]
[1759744646913,0.2221,4577.2,4577.1,0.39309]
[1759744647116,1.48063801,4577.2,4577.1,0.39309]
[1759744647517,1.48063801,4577.2,4577.1,41.19309]
[1759744647911,1.48063801,4577.2,4577.1,41.19475587]
[1759744648719,0.7615,4577.2,4577.1,41.47965587]
[1759744650817,0.5394,4577.2,4577.1,41.47965587]
[1759744651318,0.35,4577.5,4577.4,0.81897]
[1759744651616,1.3841102,4577.5,4577.4,1.10387]
[1759744652613,1.6045102,4577.5,4577.4,1.10387]
[1759744652809,1.6045102,4577.5,4577.4,0.81897]
[1759744653020,1.60444831,4577.5,4577.4,0.81897]
[1759744654514,1.1098,4577.5,4577.4,0.81897]
[1759744656224,1.1098,4577.5,4577.4,0.60487]
[1759744656720,1.1098,4577.5,4577.1,0.00166587]
[1759744656721,1.15969,4577.2,4577.1,0.00166587]
[1759744657020,0.8997,4576.5,4576.4,0.39315]
[1759744657223,0.7666,4576.4,4576.3,0.39316]
[1759744657419,0.7666,4576.4,4576.3,0.60716]
[1759744657827,0.7682963,4576.4,4576.3,0.60896337]
[1759744658824,0.0016963,4576.4,4576.3,1.11376337]
[1759744659024,0.2206963,4576.4,4576.3,1.11376337]
[1759744659327,0.5508963,4576.4,4576.3,1.11376337]
[1759744659522,0.7718963,4576.4,4576.3,1.11376337]
[1759744660024,0.9872963,4576.4,4576.3,0.82876337]
[1759744661221,0.9872963,4576.4,4576.3,1.11376337]
[1759744661415,0.9872963,4576.4,4576.3,0.82876337]
[1759744661620,0.9872963,4576.4,4576.3,0.39496337]
[1759744661826,0.9872963,4576.4,4576.3,0.60896337]
[1759744662736,0.9872963,4576.4,4576.3,0.82876337]
[1759744664619,0.9872963,4576.4,4576.3,0.00180337]
[1759744665024,1.48226605,4576.4,4576.3,0.00180337]
[1759744671731,1.48226605,4576.4,4576.3,0.21570337]
[1759744672433,1.48226605,4576.4,4576.3,0.00180337]
[1759744672935,1.48226605,4576.4,4576.3,0.21570337]
[1759744673327,1.48226605,4576.4,4576.3,0.43820337]
[1759744673634,1.48226605,4576.4,4576.3,0.00180337]
[1759744679337,1.48226605,4576.4,4576.3,0.21570337]
[1759744680033,1.48226605,4576.4,4576.3,0.00180337]
[1759744680234,1.48226605,4576.4,4576.3,0.43820337]
[1759744680636,1.48226605,4576.4,4576.3,0.00180337]
[1759744684052,0.8722,4575.5,4575.4,3.2078]
[1759744684345,1.5898121,4575.5,4575.4,3.2078]
[1759744685044,1.5898121,4575.5,4575.4,0.00243203]
[1759744686353,4.43901543,4575.5,4575.4,0.00243203]
[1759744691856,4.22001543,4575.5,4575.4,0.00243203]
[1759744692054,4.43901543,4575.5,4575.4,0.00243203]
[1759744700462,1.5898121,4575.5,4575.4,0.22563203]
[1759744700668,1.5898121,4575.5,4575.4,0.72183203]
[1759744701363,0.8083121,4575.5,4575.4,0.72183203]
[1759744701565,0.4986121,4575.5,4575.4,5.72183203]
[1759744701866,1.3642121,4575.5,4575.4,5.72183203]
[1759744703167,1.1452121,4575.5,4575.4,5.72183203]
[1759744703369,1.3642121,4575.5,4575.4,5.72183203]
[1759744703968,1.0332121,4575.5,4575.4,5.72183203]
[1759744704465,0.5346,4575.5,4575.4,5.72183203]
[1759744706365,0.74,4575.5,4575.4,5.72183203]
[1759744706565,0.74,4575.5,4575.4,8.92963203]
[1759744706962,1.0872,4575.5,4575.4,8.64433203]
[1759744707169,1.59022222,4575.5,4575.4,8.64433203]
[1759744710474,1.37122222,4575.5,4575.4,8.64433203]
[1759744710771,1.59022222,4575.5,4575.4,8.92963203]
[1759744710967,1.59022222,4575.5,4575.4,3.64433203]
[1759744712472,1.59022222,4575.5,4575.4,0.82977203]
[1759744712770,1.59022222,4575.5,4575.4,0.39567203]
[1759744712972,1.59022222,4575.5,4575.4,0.00243203]
[1759744722782,1.59022222,4575.5,4575.4,0.21613203]
[1759744723581,1.59022222,4575.5,4575.4,0.00243203]
[1759744723880,1.27462222,4575.5,4574.4,3.2078]
[1759744724179,0.8592,4574.5,4574.4,3.4215]
[1759744724379,0.8592,4574.5,4574.4,3.2078]
[1759744724380,1.58122222,4574.5,4574.4,3.2078]
[1759744724680,0.7343,4574.3,4574.2,40.8]
[1759744724877,1.23732222,4574.3,4574.2,40.8]
[1759744725078,1.23732222,4574.3,4574.2,0.00191713]
[1759744730887,4.01710361,4574.3,4574.2,0.00191713]
[1759744733084,4.01710361,4574.3,4574.2,0.39526713]
[1759744733685,4.01710361,4574.3,4574.2,0.00191713]
[1759744735781,4.23610361,4574.3,4574.2,0.00191713]
[1759744737185,1.4562937,4574.3,4574.2,0.72951713]
[1759744737381,1.4562937,4574.3,4574.2,0.44381713]
[1759744737784,1.4562937,4574.3,4574.2,0.22081713]
[1759744737984,1.4562937,4574.3,4574.2,0.00191713]
[1759744739793,1.2372937,4574.3,4574.2,0.00191713]
[1759744739992,1.4562937,4574.3,4574.2,0.00191713]
[1759744740388,0.5029937,4574.3,4574.2,8.93731713]
[1759744740593,0.3105,4575.0,4574.9,1.12088]
[1759744740785,1.24045977,4575.0,4574.9,1.12088]
[1759744740990,1.57795977,4575.0,4574.9,0.83518]
[1759744741391,1.35795977,4575.0,4574.9,0.83518]
[1759744741586,0.72595977,4575.0,4574.9,1.12088]
[1759744742097,1.03645977,4575.0,4574.9,1.12088]
[1759744742491,0.72595977,4575.0,4574.9,41.92088]
[1759744742790,0.3105,4575.3,4575.2,1.12086]
[1759744742992,0.5305,4575.3,4575.2,1.12086]
[1759744744093,0.3105,4575.3,4575.2,1.12086]
[1759744744292,0.7345,4575.3,4575.2,1.12086]
[1759744744493,1.24045572,4575.3,4575.2,1.12086]
[1759744744795,1.45005572,4575.3,4575.2,0.83516]
[1759744745593,0.50595572,4575.3,4575.2,1.12086]
[1759744745799,1.03645572,4575.3,4575.2,4.32866]
[1759744745998,1.24045572,4575.3,4575.2,4.32866]
[1759744747797,1.03645572,4575.3,4575.2,4.32866]
[1759744748193,0.72595572,4575.3,4575.2,4.32866]
[1759744749100,1.03645572,4575.3,4575.2,4.32866]
[1759744753099,0.81645572,4575.3,4575.2,4.32866]
[1759744753300,0.72595572,4575.3,4575.2,4.32866]
[1759744753999,1.03645572,4575.3,4575.2,4.32866]
[1759744754199,0.22,4575.3,4575.2,4.32866]
[1759744755300,0.5305,4575.3,4575.2,4.32866]
[1759744756104,0.22,4575.3,4575.2,4.32866]
[1759744757799,0.5295,4575.5,4575.4,1.12034]
[1759744758306,0.5295,4575.5,4575.4,41.92034]
[1759744758901,0.219,4575.5,4575.4,41.92034]
[1759744760306,0.5586,4575.8,4575.7,0.81992]
[1759744760510,0.7776,4575.8,4575.7,4.31292]
[1759744761006,0.989,4575.8,4575.7,4.02772]
[1759744761808,0.989,4575.8,4575.7,4.31292]
[1759744765112,0.7776,4575.8,4575.7,4.31292]
[1759744767010,0.5559,4575.8,4575.7,4.31292]
[1759744767216,0.219,4575.8,4575.7,4.31292]
[1759744767604,0.5559,4575.8,4575.7,4.31292]
[1759744768022,0.3369,4575.8,4575.7,4.31292]
[1759744770524,1.27659764,4575.8,4575.7,3.60102]
[1759744772110,1.27659764,4575.8,4575.7,3.82022]
[1759744773022,1.27659764,4575.8,4575.7,4.02772]
[1759744773222,1.27659764,4575.8,4575.7,4.31292]
[1759744774323,1.27659764,4575.8,4575.7,4.02772]
[1759744777227,1.27659764,4575.8,4575.7,4.31292]
[1759744787032,1.28739764,4575.8,4575.7,4.31292]
[1759744797354,1.50269764,4575.8,4575.7,4.31292]
[1759744797555,1.50269764,4575.8,4575.7,4.02772]
[1759744798254,1.50269764,4575.8,4575.7,3.82022]
[1759744800453,0.4299,4575.2,4574.6,3.2078]
[1759744800644,0.8861,4575.0,4574.9,0.39328]
[1759744800850,1.39269764,4575.0,4574.9,0.61258]
[1759744801045,0.31950764,4575.0,4574.9,41.91808]
[1759744801251,1.94569074,4576.4,4575.8,1.16771]
[1759744801252,1.17856443,4575.9,4575.8,1.16771]
[1759744801447,1.17856443,4576.1,4576.0,1.29659]
[1759744801654,0.4336,4576.1,4576.0,1.29659]
[1759744802056,0.4336,4576.1,4576.0,42.09659]
[1759744802758,0.2146,4576.1,4576.0,42.09659]
[1759744802958,0.4336,4576.1,4576.0,42.09659]
[1759744803456,0.7674,4576.1,4576.0,42.09659]
[1759744804252,0.219,4576.1,4576.0,42.09659]
[1759744804758,0.3354963,4576.4,4576.3,1.16766]
[1759744804759,0.5500963,4576.4,4576.3,1.16766]
[1759744804955,0.0016963,4576.4,4576.3,1.16766]
[1759744805259,0.2206963,4576.4,4576.3,4.37546]
[1759744805450,0.0016963,4576.4,4576.3,4.37546]
[1759744805759,0.2206963,4576.4,4576.3,4.37546]
[1759744806754,0.0016963,4576.4,4576.3,4.37546]
[1759744807459,0.0016963,4576.4,4576.3,45.17546]
[1759744813863,0.0016963,4576.4,4576.3,41.96766]
[1759744814058,0.0016963,4576.4,4576.3,45.17546]
[1759744814256,0.4299,4577.9,4577.8,1.16753]
[1759744814456,0.71840765,4577.9,4577.8,1.16753]
[1759744814862,1.26750765,4577.9,4577.8,1.16753]
[1759744815067,1.26750765,4577.9,4577.8,0.83213]
[1759744815261,0.4299,4577.0,4576.9,0.5547]
[1759744815564,0.7637,4577.0,4576.9,0.77699065]
[1759744815754,0.7637,4577.0,4576.9,1.17010065]
[1759744815961,0.8861,4577.0,4576.9,41.97010065]
[1759744816155,0.7637,4577.0,4576.9,41.97010065]
[1759744816661,0.7674,4577.3,4577.2,0.61239]
[1759744816868,0.72273641,4577.3,4577.2,1.16759]
[1759744817369,0.50373641,4577.3,4577.2,1.16759]
[1759744818059,0.219,4577.6,4577.5,0.1281]
[1759744818265,0.219,4577.6,4577.5,1.27086]
[1759744818964,0.219,4577.6,4577.5,42.07086]
[1759744819266,0.5324,4577.6,4577.5,42.07086]
[1759744822569,0.219,4577.6,4577.5,42.07086]
[1759744826871,0.4353,4578.8,4578.7,1.14266]
[1759744827072,1.15617624,4578.8,4578.7,1.14266]
[1759744827271,1.46957624,4578.8,4578.7,1.14266]
[1759744827772,1.4721766,4578.8,4578.7,1.14266]
[1759744831176,1.2535766,4578.8,4578.7,41.94266]
[1759744835782,0.7234766,4578.8,4578.7,41.94266]
[1759744837685,1.0391766,4578.8,4578.7,41.94266]
[1759744838282,1.0391766,4578.8,4577.9,0.93602]
[1759744838283,0.7477,4578.0,4577.9,0.93602]
[1759744838482,1.46857624,4578.0,4577.9,1.14482]
[1759744838782,1.46857624,4578.0,4577.9,41.94482]
[1759744840986,1.60357624,4578.0,4577.9,41.2189]
[1759744841184,1.46857624,4578.0,4577.9,41.5518]
[1759744842682,1.46857624,4578.0,4577.9,0.7518]
[1759744842881,0.50187624,4578.0,4577.9,0.7518]
[1759744843078,1.17525124,4578.7,4578.3,0.3329]
[1759744843281,1.92295124,4578.7,4578.6,0.7518]
[1759744843477,1.46963992,4578.7,4578.6,0.7518]
[1759744843880,1.46963992,4578.7,4578.6,41.5518]
[1759744844076,1.86259992,4578.7,4578.6,41.5518]
[1759744844284,1.46963992,4578.7,4578.6,41.5518]
[1759744846287,0.72193992,4578.7,4578.6,41.5518]
[1759744846478,0.50293992,4578.7,4578.6,41.5518]
[1759744846679,0.72193992,4578.7,4578.6,41.5518]
[1759744847082,0.72193992,4578.7,4578.6,44.7596]
[1759744847585,1.03763992,4578.7,4578.6,41.5518]
[1759744848991,0.81863992,4578.7,4578.6,41.5518]
[1759744849191,1.03763992,4578.7,4578.6,41.5518]
[1759744849988,1.03763992,4578.7,4578.6,41.94477]
[1759744853596,0.72193992,4578.7,4578.6,41.94477]
[1759744855093,0.72193992,4578.7,4578.0,0.72641]
[1759744855094,0.393,4578.2,4578.0,0.72641]
[1759744855397,0.7528,4578.2,4578.1,0.5425]
[1759744855698,1.47491093,4578.2,4578.1,0.5425]
[1759744855892,1.47491093,4578.2,4578.1,0.2091]
[1759744858201,1.47491093,4578.2,4578.0,0.39302]
[1759744858500,0.71361093,4578.1,4578.0,1.28792]
[1759744858792,1.03651093,4578.1,4578.0,1.28792]
[1759744859002,1.25591093,4578.1,4578.0,1.15422]
[1759744860604,9.3e-07,4578.1,4578.0,1.28792]
[1759744860807,1.17886388,4578.8,4578.7,1.15416]
[1759744860808,0.00260036,4578.8,4578.7,1.15416]
[1759744861105,0.75500036,4578.8,4578.7,1.15416]
[1759744861307,0.97440036,4578.8,4578.7,1.15416]
[1759744862014,0.97440036,4578.8,4578.7,0.7612]
[1759744863417,0.75540036,4578.8,4578.7,0.7612]
[1759744863624,0.97440036,4578.8,4578.7,0.7612]
[1759744865915,0.75500036,4578.8,4578.7,0.7612]
[1759744866519,0.97440036,4578.8,4578.7,0.7612]
[1759744869814,0.75500036,4578.8,4578.7,0.7612]
[1759744870015,0.43210036,4578.8,4578.7,0.7612]
[1759744870218,0.00260036,4578.8,4578.7,0.7612]
[1759744870419,0.22160036,4578.8,4578.7,0.7612]
[1759744870611,0.00260036,4578.8,4578.7,0.7612]
[1759744870814,0.22160036,4578.8,4578.7,0.7612]
[1759744871217,0.00260036,4578.8,4578.7,0.7612]
[1759744871615,0.22160036,4578.8,4578.7,0.7612]
[1759744872615,0.72250799,4578.8,4578.7,41.5612]
[1759744873220,0.50350799,4578.8,4578.7,41.5612]
[1759744873518,0.72250799,4578.8,4578.7,41.5612]
[1759744874221,0.22160036,4578.8,4578.7,41.5612]
[1759744874719,0.72241398,4578.8,4578.7,41.5612]
[1759744876221,1.04531398,4578.8,4578.7,41.5612]
[1759744876422,1.04531398,4578.8,4578.4,3.2078]
[1759744876423,0.8837,4578.5,4578.4,3.2078]
[1759744876618,1.38451362,4578.5,4578.4,0.5425]
[1759744876924,1.38451362,4578.5,4578.4,0.2091]
[1759744877425,1.38451362,4578.5,4578.4,0.7612]
[1759744877726,0.71588,4578.4,4578.3,40.8]
[1759744877928,2.21981408,4578.4,4578.3,40.8]
[1759744878225,0.7594,4578.3,4578.2,0.5321]
[1759744878425,1.26021362,4578.3,4578.2,0.5321]
[1759744878626,1.26021362,4578.3,4578.2,41.3321]
[1759744880320,1.47921362,4578.3,4578.2,41.3321]
[1759744880725,2.65631408,4578.3,4578.2,41.0181]
[1759744881622,2.65631408,4578.3,4578.2,0.2181]
[1759744884528,1.47921362,4578.3,4578.2,0.2181]
[1759744887329,0.50081362,4578.3,4578.2,0.7402]
[1759744887527,0.71981362,4578.3,4578.2,0.7402]
[1759744890227,1.26121362,4578.3,4578.2,0.7402]
[1759744891232,1.47921362,4578.3,4578.2,0.7402]
[1759744896341,1.47931362,4578.3,4578.2,0.393]
[1759744898141,1.47931362,4578.3,4578.2,0.9293]
[1759744898533,1.47931362,4578.3,4578.2,1.152]
[1759744898534,1.26031362,4578.3,4578.2,1.152]
[1759744898740,0.71401362,4578.3,4578.2,1.152]
[1759744898944,0.50081362,4578.3,4578.2,6.152]
[1759744899238,3.6e-07,4578.8,4578.7,1.15196]
[1759744899541,0.21900036,4578.8,4578.7,41.95196]
[1759744900042,3.6e-07,4578.8,4578.7,41.62096]
[1759744900231,0.21900036,4578.8,4578.7,41.95196]
[1759744900435,3.6e-07,4578.8,4578.7,41.62096]
[1759744900836,0.21900036,4578.8,4578.7,41.62096]
[1759744901040,0.21900036,4578.8,4578.7,41.95196]
[1759744906944,0.54730036,4578.8,4578.7,41.95196]
[1759744911245,1.04538937,4578.8,4578.7,41.95196]
[1759744913745,0.71708937,4578.8,4578.7,41.95196]
[1759744914142,3.6e-07,4578.8,4578.7,41.62096]
[1759744925648,0.49774126,4578.8,4578.7,41.62096]
[1759744925843,0.80444126,4578.8,4578.7,41.62096]
[1759744926254,0.80444126,4578.8,4578.7,41.92936]
[1759744929452,0.49774126,4578.8,4578.7,41.92936]
[1759744930562,0.71674126,4578.8,4578.7,41.92936]
[1759744931852,1.26e-06,4578.8,4578.7,41.92936]
[1759744932954,0.00204573,4578.8,4578.7,41.92936]
[1759744933355,0.219,4579.2,4579.1,1.11852]
[1759744933555,1.90960046,4579.8,4579.7,0.81007]
[1759744933853,1.90960046,4579.8,4579.7,1.11847]
[1759744934157,0.7344,4579.8,4579.7,1.11847]
[1759744934354,0.00221333,4579.8,4579.7,1.11847]
[1759744934550,0.22121333,4579.8,4579.7,1.11847]
[1759744934952,0.95371333,4579.8,4579.7,1.11847]
[1759744935863,0.73661333,4579.8,4579.7,1.11847]
[1759744936059,0.22121333,4579.8,4579.7,1.11847]
[1759744936255,0.47077939,4580.3,4580.2,1.11843]
[1759744936457,0.89847939,4580.3,4580.2,1.11843]
[1759744936759,1.42227939,4580.3,4580.2,41.91843]
[1759744937350,1.20692539,4580.3,4580.2,41.92048878]
[1759744937560,0.69152539,4580.3,4580.2,41.92048878]
[1759744938560,0.47252539,4580.3,4580.2,41.92048878]
[1759744938760,5.39e-06,4580.3,4580.2,41.92048878]
[1759744939254,3.2078,4581.2,4580.8,0.2158]
[1759744939451,1.94399444,4582.3,4580.8,1.16398]
[1759744939452,1.17710046,4581.7,4580.8,1.16398]
[1759744939654,0.219,4581.4,4580.8,1.16398]
[1759744939853,0.3156,4581.2,4580.8,1.16398]
[1759744940057,0.55592285,4580.9,4580.8,41.5712]
[1759744940256,0.55783387,4580.9,4580.8,41.5712]
[1759744944461,0.77683387,4580.9,4580.8,41.5712]
[1759744944661,1.27034813,4580.9,4580.8,41.5712]
[1759744944861,0.73404813,4580.9,4580.8,41.5712]
[1759744946062,0.51504813,4580.9,4580.8,41.5712]
[1759744946365,0.73404813,4580.9,4580.8,41.5712]
[1759744948571,0.51504813,4580.9,4580.8,41.5712]
[1759744948762,0.73404813,4580.9,4580.8,41.5712]
[1759744949874,0.51504813,4580.9,4580.8,41.5712]
[1759744950169,0.02153387,4580.9,4580.8,41.5712]
[1759744959279,0.2154,4582.4,4582.3,0.204]
[1759744959478,0.2154,4582.4,4581.6,0.3236]
[1759744959479,0.4186,4582.1,4581.6,0.3236]
[1759744959773,0.8611,4581.5,4581.4,0.204]
[1759744959970,0.4186,4581.0,4580.9,0.7404]
[1759744960169,0.53040887,4581.0,4580.9,0.7404]
[1759744960377,1.02356585,4581.0,4580.9,41.93317]
[1759744961276,0.71096585,4581.0,4580.9,41.93317]
[1759744962378,1.02356585,4581.0,4580.9,41.93317]
[1759744962964,0.53040887,4581.0,4580.9,41.93317]
[1759744963176,0.7117327,4581.0,4580.9,41.93317]
[1759744964075,0.4963327,4581.0,4580.9,41.93317]
[1759744970272,0.8211327,4581.0,4580.9,41.93317]
[1759744970875,0.4963327,4581.0,4580.9,41.93317]
[1759744971973,0.4963327,4581.0,4580.9,0.204]
[1759744971974,1.3866327,4581.0,4580.9,0.204]
[1759744972174,0.7585,4580.8,4580.7,0.60318]
[1759744972374,1.25242383,4580.8,4580.7,0.92398]
[1759744972579,1.25242383,4580.8,4580.7,41.0104]
[1759744972777,0.7585,4580.3,4580.2,0.00205878]
[1759744972975,1.47142383,4580.3,4580.2,0.00205878]
[1759744973376,0.49392383,4580.3,4580.2,0.74945878]
[1759744973582,1.17717129,4580.6,4580.5,1.2662]
[1759744973774,0.22240887,4581.0,4580.9,0.7474]
[1759744974175,0.71722234,4581.0,4580.9,0.7474]
[1759744974572,0.22240887,4581.0,4580.9,0.7474]
[1759744977583,0.76030887,4581.0,4580.9,0.7474]
[1759744977785,1.47036426,4581.0,4580.9,0.7474]
[1759744978089,1.60216426,4581.0,4580.9,0.4266]
[1759744978484,1.60216426,4581.0,4580.9,0.7474]
[1759744981391,0.4337,4580.7,4580.6,0.39279]
[1759744981593,0.84366426,4581.0,4580.4,0.2104]
[1759744981594,0.1318,4580.5,4580.4,0.2104]
[1759744981796,1.27495539,4580.5,4580.4,0.2104]
[1759744981994,1.27495539,4580.5,4580.4,41.0104]
[1759744982294,1.59975539,4580.5,4580.4,40.8]
[1759744983295,0.7585,4580.3,4580.2,0.00205878]
[1759744983487,1.24795539,4580.3,4580.2,0.00205878]
[1759744983794,1.24795539,4580.3,4580.2,0.21245878]
[1759744984291,1.24795539,4580.3,4580.2,0.74945878]
[1759744984696,1.64077539,4580.3,4580.2,0.74945878]
[1759744984995,1.64077539,4580.3,4580.2,0.42865878]
[1759744986189,1.64077539,4580.3,4580.2,0.21245878]
[1759744986490,1.64077539,4580.3,4580.2,0.00205878]
[1759744986694,1.64077539,4580.3,4580.2,0.21245878]
[1759744987986,0.3248,4579.2,4579.1,3.9552]
[1759744988186,0.7585,4579.4,4579.3,1.14031]
[1759744988387,0.9785,4579.4,4579.3,41.94031]
[1759744988594,0.22,4579.4,4579.3,41.94031]
[1759744988992,0.5379,4579.8,4579.7,0.81947]
[1759744989188,1.24663346,4579.8,4579.7,1.14027]
[1759744989590,1.46723346,4579.8,4579.7,1.14027]
[1759744989889,1.46723346,4579.8,4579.7,0.2104]
[1759744990193,0.5655,4579.5,4579.4,0.2104]
[1759744990389,0.5655,4578.5,4578.4,0.5312]
[1759744990602,1.14225975,4578.5,4578.4,0.7474]
[1759744990900,1.46705975,4578.5,4578.4,41.5474]
[1759744991095,0.9785,4578.5,4578.4,41.5474]
[1759744991498,0.9785,4578.5,4578.4,41.54980878]
[1759744992397,0.7585,4578.9,4578.8,0.81955]
[1759744992596,1.46642621,4578.9,4578.8,0.7474]
[1759744993091,1.24642621,4578.9,4578.8,0.7474]
[1759744993396,0.9785,4578.9,4578.8,0.7474]
[1759744993597,0.9785,4578.9,4578.8,0.2104]
[1759744993800,0.9785,4578.9,4578.5,0.3208]
[1759744993801,1.15145,4578.9,4578.7,0.39295]
[1759744993994,0.9785,4578.8,4578.7,0.60335]
[1759744994297,0.9785,4578.8,4578.7,0.2104]
[1759744994699,0.9785,4578.8,4578.7,0.7474]
[1759744997401,0.9785,4578.8,4578.6,0.39296]
[1759744997605,0.8903,4578.5,4578.4,41.51618878]
[1759744998904,0.8903,4578.5,4578.4,41.19538878]
[1759744999203,0.7585,4578.5,4578.4,41.51648878]
[1759745000808,0.8935,4578.5,4578.4,0.20610878]
[1759745001005,3.6953903,4578.5,4578.4,0.20610878]
[1759745001199,3.6953903,4578.5,4578.4,0.52720878]
[1759745002901,3.6953903,4578.5,4578.4,0.00240878]
[1759745003800,3.5603903,4578.5,4578.4,0.74130878]
[1759745004005,0.7585,4578.5,4578.4,0.74130878]
[1759745004204,0.7579,4578.5,4578.4,0.74130878]
[1759745006309,0.9739,4578.5,4578.4,0.74130878]
[1759745006706,1.1089,4578.5,4578.4,0.74130878]
[1759745006908,1.1089,4578.5,4578.4,0.20610878]
[1759745007610,1.1089,4578.5,4578.4,0.52720878]
[1759745007811,1.1089,4578.5,4578.4,0.20610878]
[1759745008111,1.1089,4578.5,4578.4,0.74130878]
[1759745008411,0.7539,4578.5,4578.4,0.74130878]
[1759745008708,0.9739,4578.5,4578.4,0.74130878]
[1759745008908,1.1089,4578.5,4578.4,0.74130878]
[1759745009110,0.9739,4578.5,4578.4,0.74130878]
[1759745009809,1.1089,4578.5,4578.4,0.74130878]
[1759745010204,1.1089,4578.5,4578.4,0.20610878]
[1759745010405,1.1089,4578.5,4578.4,0.00240878]
[1759745010717,1.1089,4578.5,4577.4,0.98267]
[1759745010718,0.5423,4577.4,4577.3,0.5248]
[1759745010913,0.9777,4577.4,4577.3,0.5248]
[1759745011212,0.9777,4577.4,4577.3,41.5389]
[1759745011401,1.37077,4577.4,4577.3,40.8]
[1759745011606,0.9777,4577.4,4577.3,40.8]
[1759745011814,0.98001509,4577.4,4577.3,40.80165252]
[1759745012214,0.98001509,4577.4,4577.3,41.12275252]
[1759745014613,1.46913401,4577.4,4577.3,41.12275252]
[1759745016112,0.71143401,4577.4,4577.3,41.12275252]
[1759745016318,0.49143401,4577.4,4577.3,41.12275252]
[1759745016513,0.71143401,4577.4,4577.3,41.12275252]
[1759745016916,0.49143401,4577.4,4577.3,41.12275252]
[1759745017113,0.22231509,4577.4,4577.3,41.12275252]
[1759745018813,0.54831509,4577.4,4577.3,41.51583252]
[1759745019015,1.03789878,4577.4,4577.3,40.80165252]
[1759745019213,1.47719878,4577.4,4577.3,0.21685252]
[1759745019812,0.7653,4576.8,4576.7,3.2078]
[1759745020014,1.47488369,4576.8,4576.7,3.423]
[1759745020214,1.47488369,4576.8,4576.4,0.5267]
[1759745020215,0.8988,4576.5,4576.4,0.5267]
[1759745020416,1.38838369,4576.5,4576.4,0.7496]
[1759745020816,1.38838369,4576.5,4576.4,0.75137026]
[1759745021620,1.25488369,4576.5,4576.4,0.75137026]
[1759745021812,1.38838369,4576.5,4576.4,0.75137026]
[1759745022617,0.71078369,4576.5,4576.4,0.75137026]
[1759745022914,1.03678369,4576.5,4576.4,0.75137026]
[1759745023122,1.25488369,4576.5,4576.4,0.75137026]
[1759745023420,1.38838369,4576.5,4576.4,0.00177026]
[1759745024614,0.8988,4576.5,4576.4,0.00177026]
[1759745025424,0.8988,4576.5,4576.4,0.21697026]
[1759745025624,0.8988,4576.5,4576.4,0.75137026]
[1759745025918,0.9853,4576.5,4576.4,0.75137026]
[1759745026112,0.7653,4576.5,4576.4,0.75137026]
[1759745026313,0.5472,4576.9,4576.8,0.4381]
[1759745026626,1.25634655,4576.9,4576.8,0.7496]
[1759745027322,1.25634655,4576.9,4576.8,1.14272]
[1759745027516,1.47444655,4576.9,4576.8,1.14272]
[1759745027717,1.47444655,4576.9,4576.8,0.83122]
[1759745027912,0.3372,4576.5,4576.4,0.39493026]
[1759745028116,0.8733,4576.5,4576.4,0.39493026]
[1759745028318,0.8733,4576.5,4576.4,0.61713026]
[1759745029020,0.8733,4576.5,4576.4,0.93403026]
[1759745030025,0.8733,4576.5,4576.4,1.15813026]
[1759745030226,0.7421,4576.5,4576.4,1.15813026]
[1759745030419,0.7421,4576.9,4576.8,1.15632]